[Event "Titled Tuesday Blitz October 11 Early 2022"]
[White "Yurovskykh, Oleksandr"]
[Black "Torres Boch, Jose Francisco"]
[WhiteFideId "14134020"]
[BlackFideId "2278383"]
[WhiteElo "2303"]
[BlackElo "2073"]
[Result "0-1"]
[Round "05"]
[TimeControl "180+1"]
[Date "2022.10.12"]
[WhiteClock "0:00:05"]
[BlackClock "0:00:05"]

1. d4 {[%clk 0:02:48]}  Nf6 {[%clk 0:02:59]} 2. Nf3 {[%clk 0:02:47]}  e6 {[%clk 0:02:59]} 3. Bf4 {[%clk 0:02:47]}  c5 {[%clk 0:02:59]} 4. c3 {[%clk 0:02:47]}  d5 {[%clk 0:03:00]} 5. e3 {[%clk 0:02:47]}  Nc6 {[%clk 0:02:59]} 6. Nbd2 {[%clk 0:02:48]}  Bd6 {[%clk 0:02:59]} 7. Bg3 {[%clk 0:02:48]}  O-O {[%clk 0:03:00]} 8. Bb5 {[%clk 0:02:47]}  Ne7 {[%clk 0:02:46]} 9. Bd3 {[%clk 0:02:47]}  b5 {[%clk 0:02:44]} 10. dxc5 {[%clk 0:02:25]}  Bxc5 {[%clk 0:02:36]} 11. Bxb5 {[%clk 0:02:24]}  Nf5 {[%clk 0:02:34]} 12. Bf4 {[%clk 0:02:10]}  Qb6 {[%clk 0:02:24]} 13. Qb3 {[%clk 0:02:04]}  Nh5 {[%clk 0:02:22]} 14. Be2 {[%clk 0:01:51]}  Nxf4 {[%clk 0:02:20]} 15. exf4 {[%clk 0:01:35]}  Bxf2+ {[%clk 0:02:19]} 16. Kd1 {[%clk 0:01:35]}  Qc7 {[%clk 0:01:58]} 17. g3 {[%clk 0:01:31]}  Rb8 {[%clk 0:01:53]} 18. Qa3 {[%clk 0:01:25]}  a5 {[%clk 0:01:46]} 19. Nb3 {[%clk 0:01:18]}  Ra8 {[%clk 0:01:16]} 20. Bd3 {[%clk 0:01:09]}  a4 {[%clk 0:01:14]} 21. Bxf5 {[%clk 0:01:09]}  exf5 {[%clk 0:01:06]} 22. Nbd4 {[%clk 0:01:09]}  Ba6 {[%clk 0:01:01]} 23. Kd2 {[%clk 0:01:02]}  Qc4 {[%clk 0:00:55]} 24. Ne5 {[%clk 0:00:58]}  Qc7 {[%clk 0:00:46]} 25. Nef3 {[%clk 0:00:26]}  Rfe8 {[%clk 0:00:41]} 26. Qxa4 {[%clk 0:00:22]}  Qb6 {[%clk 0:00:23]} 27. Qb3 {[%clk 0:00:20]}  Re2+ {[%clk 0:00:19]} 28. Kd1 {[%clk 0:00:15]}  Rxb2 {[%clk 0:00:15]} 29. Qxb6 {[%clk 0:00:13]}  Rxb6 {[%clk 0:00:16]} 30. Nb3 {[%clk 0:00:06]}  Re8 {[%clk 0:00:13]} 31. Nfd4 {[%clk 0:00:06]}  Rb7 {[%clk 0:00:10]} 32. Kd2 {[%clk 0:00:06]}  Rbe7 {[%clk 0:00:10]} 33. Rhf1 {[%clk 0:00:04]}  Bxf1 {[%clk 0:00:09]} 34. Rxf1 {[%clk 0:00:05]}  Bxd4 {[%clk 0:00:09]} 35. Nxd4 {[%clk 0:00:06]}  Ra7 {[%clk 0:00:09]} 36. Ra1 {[%clk 0:00:07]}  Rea8 {[%clk 0:00:09]} 37. Kd3 {[%clk 0:00:05]}  Rxa2 {[%clk 0:00:10]} 38. Rh1 {[%clk 0:00:05]}  Rg2 {[%clk 0:00:09]} 39. Nxf5 {[%clk 0:00:05]}  g6 {[%clk 0:00:10]} 40. Nd4 {[%clk 0:00:05]}  Kg7 {[%clk 0:00:10]} 41. Nf3 {[%clk 0:00:04]}  Raa2 {[%clk 0:00:11]} 42. Ke3 {[%clk 0:00:03]}  Rae2+ {[%clk 0:00:10]} 43. Kd4 {[%clk 0:00:04]}  Ref2 {[%clk 0:00:11]} 44. Ng5 {[%clk 0:00:04]}  h6 {[%clk 0:00:09]} 45. Nh3 {[%clk 0:00:03]}  Rd2+ {[%clk 0:00:09]} 46. Ke3 {[%clk 0:00:03]}  Rxh2 {[%clk 0:00:09]} 47. Ra1 {[%clk 0:00:03]}  Rxh3 {[%clk 0:00:08]} 48. Kxd2 {[%clk 0:00:03]}  Rxg3 {[%clk 0:00:09]} 49. Ra5 {[%clk 0:00:03]}  Rf3 {[%clk 0:00:08]} 50. Rxd5 {[%clk 0:00:03]}  Rxf4 {[%clk 0:00:08]} 51. Kd3 {[%clk 0:00:03]}  h5 {[%clk 0:00:08]} 52. c4 {[%clk 0:00:04]}  Rf6 {[%clk 0:00:06]} 53. c5 {[%clk 0:00:03]}  Rc6 {[%clk 0:00:07]} 54. Kc4 {[%clk 0:00:03]}  h4 {[%clk 0:00:06]} 55. Kb5 {[%clk 0:00:04]}  Rc8 {[%clk 0:00:06]} 56. c6 {[%clk 0:00:05]}  Kh6 {[%clk 0:00:06]} 57. Kb6 {[%clk 0:00:04]}  g5 {[%clk 0:00:07]} 58. Kb7 {[%clk 0:00:05]}  Re8 {[%clk 0:00:05]} 59. c7 {[%clk 0:00:05]}  Re7 {[%clk 0:00:05]} 60. Kc6 {[%clk 0:00:05]}  Rxc7+ {[%clk 0:00:05]} 61. Kxc7 {[%clk 0:00:06]}  g4 {[%clk 0:00:04]} 62. Kd6 {[%clk 0:00:07]}  h3 {[%clk 0:00:04]} 63. Ke5 {[%clk 0:00:08]}  g3 {[%clk 0:00:04]} 64. Rd1 {[%clk 0:00:08]}  g2 {[%clk 0:00:04]} 65. Kf4 {[%clk 0:00:05]}  h2 {[%clk 0:00:05]} 0-1


[Site "https://www.chess.com"]

[Event "Titled Tuesday Blitz October 11 Early 2022"]
[White "Zaloznyy, Mike"]
[Black "Melikhov, Evgeny V."]
[WhiteFideId "2023075"]
[BlackFideId "4122046"]
[WhiteElo "2126"]
[BlackElo "2169"]
[Result "1-0"]
[Round "05"]
[TimeControl "180+1"]
[Date "2022.10.12"]
[WhiteClock "0:00:04"]
[BlackClock "0:00:01"]

1. Nf3 {[%clk 0:03:00]}  f5 {[%clk 0:02:55]} 2. d3 {[%clk 0:03:00]}  d6 {[%clk 0:02:53]} 3. e4 {[%clk 0:03:00]}  e5 {[%clk 0:02:53]} 4. Nc3 {[%clk 0:03:00]}  Nf6 {[%clk 0:02:52]} 5. g3 {[%clk 0:03:00]}  Be7 {[%clk 0:02:50]} 6. Nh4 {[%clk 0:02:55]}  f4 {[%clk 0:02:35]} 7. gxf4 {[%clk 0:02:48]}  Nxe4 {[%clk 0:02:28]} 8. Qh5+ {[%clk 0:02:34]}  g6 {[%clk 0:02:28]} 9. Nxg6 {[%clk 0:02:34]}  Nf6 {[%clk 0:02:28]} 10. Qh6 {[%clk 0:02:18]}  Rg8 {[%clk 0:02:24]} 11. Nxe7 {[%clk 0:02:11]}  Qxe7 {[%clk 0:02:23]} 12. fxe5 {[%clk 0:02:05]}  Nc6 {[%clk 0:02:11]} 13. Be2 {[%clk 0:01:43]}  Nxe5 {[%clk 0:02:02]} 14. Be3 {[%clk 0:01:27]}  Neg4 {[%clk 0:01:52]} 15. Qf4 {[%clk 0:01:06]}  Nxe3 {[%clk 0:01:48]} 16. Qxe3 {[%clk 0:00:58]}  Ng4 {[%clk 0:01:27]} 17. Bxg4 {[%clk 0:00:50]}  Bxg4 {[%clk 0:01:22]} 18. Rg1 {[%clk 0:00:32]}  Qxe3+ {[%clk 0:01:15]} 19. fxe3 {[%clk 0:00:32]}  O-O-O {[%clk 0:01:15]} 20. Kd2 {[%clk 0:00:27]}  c6 {[%clk 0:01:05]} 21. Rg3 {[%clk 0:00:27]}  d5 {[%clk 0:00:58]} 22. Rag1 {[%clk 0:00:23]}  Be6 {[%clk 0:00:58]} 23. Ne2 {[%clk 0:00:22]}  Rgf8 {[%clk 0:00:49]} 24. Nf4 {[%clk 0:00:19]}  Bf5 {[%clk 0:00:48]} 25. Rg7 {[%clk 0:00:18]}  Rd6 {[%clk 0:00:34]} 26. Re7 {[%clk 0:00:13]}  Bg6 {[%clk 0:00:30]} 27. Nxg6 {[%clk 0:00:12]}  hxg6 {[%clk 0:00:30]} 28. Rg2 {[%clk 0:00:10]}  Rff6 {[%clk 0:00:29]} 29. Rg7 {[%clk 0:00:10]}  Rde6 {[%clk 0:00:27]} 30. Ke2 {[%clk 0:00:09]}  a5 {[%clk 0:00:24]} 31. Rf2 {[%clk 0:00:10]}  a4 {[%clk 0:00:22]} 32. Rxf6 {[%clk 0:00:09]}  Rxf6 {[%clk 0:00:23]} 33. a3 {[%clk 0:00:10]}  Kb8 {[%clk 0:00:21]} 34. e4 {[%clk 0:00:10]}  dxe4 {[%clk 0:00:19]} 35. dxe4 {[%clk 0:00:11]}  Ka7 {[%clk 0:00:17]} 36. Ke3 {[%clk 0:00:10]}  Kb6 {[%clk 0:00:17]} 37. e5 {[%clk 0:00:10]}  Re6 {[%clk 0:00:16]} 38. Ke4 {[%clk 0:00:11]}  Kc5 {[%clk 0:00:15]} 39. Rf7 {[%clk 0:00:11]}  b5 {[%clk 0:00:13]} 40. Rf6 {[%clk 0:00:11]}  Re8 {[%clk 0:00:11]} 41. Rxg6 {[%clk 0:00:11]}  Rh8 {[%clk 0:00:11]} 42. Rg2 {[%clk 0:00:11]}  Rh4+ {[%clk 0:00:10]} 43. Kf5 {[%clk 0:00:11]}  Kb6 {[%clk 0:00:07]} 44. Rd2 {[%clk 0:00:11]}  Rh5+ {[%clk 0:00:05]} 45. Ke6 {[%clk 0:00:11]}  Rh6+ {[%clk 0:00:05]} 46. Kd7 {[%clk 0:00:10]}  Rh7+ {[%clk 0:00:05]} 47. Kd6 {[%clk 0:00:11]}  Kb7 {[%clk 0:00:05]} 48. e6 {[%clk 0:00:11]}  Kc8 {[%clk 0:00:05]} 49. Kxc6 {[%clk 0:00:08]}  Rc7+ {[%clk 0:00:05]} 50. Kxb5 {[%clk 0:00:07]}  Re7 {[%clk 0:00:05]} 51. Kxa4 {[%clk 0:00:07]}  Rxe6 {[%clk 0:00:04]} 52. Kb4 {[%clk 0:00:06]}  Re4+ {[%clk 0:00:04]} 53. c4 {[%clk 0:00:05]}  Kc7 {[%clk 0:00:05]} 54. a4 {[%clk 0:00:05]}  Rh4 {[%clk 0:00:04]} 55. Kb5 {[%clk 0:00:05]}  Rh5+ {[%clk 0:00:04]} 56. c5 {[%clk 0:00:06]}  Kb7 {[%clk 0:00:04]} 57. b4 {[%clk 0:00:06]}  Rh7 {[%clk 0:00:04]} 58. a5 {[%clk 0:00:06]}  Ka7 {[%clk 0:00:04]} 59. a6 {[%clk 0:00:06]}  Rh8 {[%clk 0:00:01]} 60. Rd7+ {[%clk 0:00:05]}  Ka8 {[%clk 0:00:02]} 61. Kb6 {[%clk 0:00:05]}  Rb8+ {[%clk 0:00:01]} 62. Rb7 {[%clk 0:00:04]}  Rh8 {[%clk 0:00:01]} 63. c6 {[%clk 0:00:04]} 1-0


[Site "https://www.chess.com"]

[Event "Titled Tuesday Blitz October 11 Early 2022"]
[White "Agasarov, Benik"]
[Black "Leve, Nitai"]
[WhiteFideId "13314823"]
[BlackFideId "2006898"]
[WhiteElo "2152"]
[BlackElo "2144"]
[Result "1/2-1/2"]
[Round "06"]
[TimeControl "180+1"]
[Date "2022.10.12"]
[WhiteClock "0:01:08"]
[BlackClock "0:00:03"]

1. b3 {[%clk 0:03:00]}  d5 {[%clk 0:01:42]} 2. Bb2 {[%clk 0:03:00]}  Nc6 {[%clk 0:01:36]} 3. e3 {[%clk 0:02:58]}  e5 {[%clk 0:01:34]} 4. Bb5 {[%clk 0:02:58]}  Bd6 {[%clk 0:01:34]} 5. f4 {[%clk 0:02:57]}  Qh4+ {[%clk 0:01:30]} 6. g3 {[%clk 0:02:55]}  Qe7 {[%clk 0:01:30]} 7. Nf3 {[%clk 0:02:53]}  f6 {[%clk 0:01:07]} 8. Nc3 {[%clk 0:02:49]}  d4 {[%clk 0:01:02]} 9. Nd5 {[%clk 0:02:45]}  Qe6 {[%clk 0:00:47]} 10. fxe5 {[%clk 0:02:26]}  Qxd5 {[%clk 0:00:37]} 11. Bxc6+ {[%clk 0:02:20]}  Qxc6 {[%clk 0:00:36]} 12. exd6 {[%clk 0:02:20]}  dxe3 {[%clk 0:00:36]} 13. dxc7 {[%clk 0:02:16]}  Bg4 {[%clk 0:00:34]} 14. O-O {[%clk 0:02:13]}  exd2 {[%clk 0:00:30]} 15. Nd4 {[%clk 0:01:59]}  Bxd1 {[%clk 0:00:24]} 16. Nxc6 {[%clk 0:01:59]}  bxc6 {[%clk 0:00:06]} 17. Raxd1 {[%clk 0:01:58]}  Kd7 {[%clk 0:00:07]} 18. Rxd2+ {[%clk 0:01:56]}  Kxc7 {[%clk 0:00:07]} 19. Ba3 {[%clk 0:01:54]}  Nh6 {[%clk 0:00:07]} 20. Re1 {[%clk 0:01:53]}  Rhe8 {[%clk 0:00:06]} 21. Bd6+ {[%clk 0:01:52]}  Kb6 {[%clk 0:00:06]} 22. Rde2 {[%clk 0:01:47]}  Rxe2 {[%clk 0:00:05]} 23. Rxe2 {[%clk 0:01:48]}  Nf5 {[%clk 0:00:05]} 24. Bf4 {[%clk 0:01:46]}  g5 {[%clk 0:00:04]} 25. Bc1 {[%clk 0:01:45]}  Rd8 {[%clk 0:00:04]} 26. Bb2 {[%clk 0:01:46]}  h5 {[%clk 0:00:03]} 27. Bxf6 {[%clk 0:01:45]}  Rd1+ {[%clk 0:00:03]} 28. Kg2 {[%clk 0:01:44]}  g4 {[%clk 0:00:02]} 29. a4 {[%clk 0:01:39]}  Kc5 {[%clk 0:00:02]} 30. Re5+ {[%clk 0:01:37]}  Rd5 {[%clk 0:00:02]} 31. Re2 {[%clk 0:01:33]}  Kd6 {[%clk 0:00:01]} 32. Bg5 {[%clk 0:01:33]}  Nd4 {[%clk 0:00:01]} 33. Bf4+ {[%clk 0:01:32]}  Kc5 {[%clk 0:00:01]} 34. Be3 {[%clk 0:01:32]}  Kb4 {[%clk 0:00:02]} 35. Rd2 {[%clk 0:01:31]}  Nf3 {[%clk 0:00:02]} 36. Rxd5 {[%clk 0:01:30]}  cxd5 {[%clk 0:00:03]} 37. Bxa7 {[%clk 0:01:31]}  Ne1+ {[%clk 0:00:03]} 38. Kf2 {[%clk 0:01:29]}  Nxc2 {[%clk 0:00:04]} 39. Bb6 {[%clk 0:01:27]}  Na1 {[%clk 0:00:03]} 40. a5 {[%clk 0:01:27]}  Kb5 {[%clk 0:00:03]} 41. Ke3 {[%clk 0:01:27]}  Nxb3 {[%clk 0:00:03]} 42. Kf4 {[%clk 0:01:28]}  Nxa5 {[%clk 0:00:02]} 43. Be3 {[%clk 0:01:26]}  Nc4 {[%clk 0:00:01]} 44. Bc1 {[%clk 0:01:27]}  Kc6 {[%clk 0:00:02]} 45. Kg5 {[%clk 0:01:27]}  d4 {[%clk 0:00:02]} 46. Kxh5 {[%clk 0:01:28]}  Ne3 {[%clk 0:00:02]} 47. Kg5 {[%clk 0:01:26]}  Nf1 {[%clk 0:00:01]} 48. Kxg4 {[%clk 0:01:23]}  Nxh2+ {[%clk 0:00:02]} 49. Kf4 {[%clk 0:01:23]}  Kd5 {[%clk 0:00:02]} 50. Bd2 {[%clk 0:01:18]}  Ke6 {[%clk 0:00:02]} 51. Be1 {[%clk 0:01:09]}  Nf1 {[%clk 0:00:01]} 52. Bf2 {[%clk 0:01:09]}  Nxg3 {[%clk 0:00:01]} 53. Kxg3 {[%clk 0:01:08]}  d3 {[%clk 0:00:02]} 54. Be1 {[%clk 0:01:07]}  d2 {[%clk 0:00:03]} 55. Bxd2 {[%clk 0:01:08]} 1/2-1/2


[Site "https://www.chess.com"]

[Event "Titled Tuesday Blitz October 11 Early 2022"]
[White "Aggelis, Nikolaos"]
[Black "Boraso, Alessio"]
[WhiteFideId "4213220"]
[BlackFideId "848077"]
[WhiteElo "2187"]
[BlackElo "2286"]
[Result "1-0"]
[Round "06"]
[TimeControl "180+1"]
[Date "2022.10.12"]
[WhiteClock "0:00:11"]
[BlackClock "0:00:01"]

1. d4 {[%clk 0:00:59]}  Nf6 {[%clk 0:02:58]} 2. g3 {[%clk 0:01:00]}  g6 {[%clk 0:02:58]} 3. Bg2 {[%clk 0:01:01]}  Bg7 {[%clk 0:02:59]} 4. Nf3 {[%clk 0:01:02]}  O-O {[%clk 0:03:00]} 5. O-O {[%clk 0:01:03]}  d6 {[%clk 0:03:00]} 6. b3 {[%clk 0:01:03]}  c5 {[%clk 0:03:01]} 7. c4 {[%clk 0:01:02]}  Nc6 {[%clk 0:03:01]} 8. Bb2 {[%clk 0:01:03]}  Bf5 {[%clk 0:02:56]} 9. Nc3 {[%clk 0:01:00]}  Ne4 {[%clk 0:02:55]} 10. Nh4 {[%clk 0:01:00]}  Nxc3 {[%clk 0:02:46]} 11. Bxc3 {[%clk 0:01:01]}  Nxd4 {[%clk 0:02:30]} 12. Nxf5 {[%clk 0:01:00]}  Nxf5 {[%clk 0:02:29]} 13. Bxg7 {[%clk 0:01:00]}  Kxg7 {[%clk 0:02:29]} 14. Bxb7 {[%clk 0:01:00]}  Rb8 {[%clk 0:02:29]} 15. Be4 {[%clk 0:01:00]}  Qd7 {[%clk 0:02:28]} 16. Qd3 {[%clk 0:00:59]}  Qe6 {[%clk 0:02:20]} 17. Bxf5 {[%clk 0:00:59]}  Qxf5 {[%clk 0:02:19]} 18. Qxf5 {[%clk 0:00:58]}  gxf5 {[%clk 0:02:20]} 19. Rfd1 {[%clk 0:00:56]}  Kf6 {[%clk 0:02:20]} 20. Rd3 {[%clk 0:00:56]}  a5 {[%clk 0:02:20]} 21. Re1 {[%clk 0:00:52]}  a4 {[%clk 0:02:14]} 22. e4 {[%clk 0:00:52]}  axb3 {[%clk 0:01:52]} 23. axb3 {[%clk 0:00:53]}  Rb7 {[%clk 0:01:46]} 24. Kg2 {[%clk 0:00:52]}  Rfb8 {[%clk 0:01:44]} 25. Rf3 {[%clk 0:00:52]}  e6 {[%clk 0:01:40]} 26. exf5 {[%clk 0:00:52]}  Rxb3 {[%clk 0:01:38]} 27. fxe6+ {[%clk 0:00:38]}  Rxf3 {[%clk 0:01:36]} 28. Kxf3 {[%clk 0:00:39]}  fxe6 {[%clk 0:01:36]} 29. Re4 {[%clk 0:00:39]}  d5 {[%clk 0:01:31]} 30. cxd5 {[%clk 0:00:38]}  exd5 {[%clk 0:01:31]} 31. Rh4 {[%clk 0:00:39]}  Rb3+ {[%clk 0:01:29]} 32. Ke2 {[%clk 0:00:38]}  Rb7 {[%clk 0:01:28]} 33. f4 {[%clk 0:00:36]}  Kf5 {[%clk 0:01:26]} 34. Kd3 {[%clk 0:00:32]}  Rb3+ {[%clk 0:01:21]} 35. Kc2 {[%clk 0:00:33]}  c4 {[%clk 0:01:14]} 36. Rxh7 {[%clk 0:00:32]}  d4 {[%clk 0:01:14]} 37. Re7 {[%clk 0:00:28]}  Ra3 {[%clk 0:01:12]} 38. Re5+ {[%clk 0:00:28]}  Kg4 {[%clk 0:01:09]} 39. f5 {[%clk 0:00:28]}  Ra2+ {[%clk 0:01:08]} 40. Kb1 {[%clk 0:00:26]}  Rd2 {[%clk 0:01:02]} 41. f6 {[%clk 0:00:22]}  c3 {[%clk 0:00:49]} 42. f7 {[%clk 0:00:17]}  c2+ {[%clk 0:00:07]} 43. Kc1 {[%clk 0:00:14]}  Rf2 {[%clk 0:00:05]} 44. Re4+ {[%clk 0:00:12]}  Kg5 {[%clk 0:00:05]} 45. Rf4 {[%clk 0:00:12]}  Rxh2 {[%clk 0:00:02]} 46. f8=Q {[%clk 0:00:12]}  Rh1+ {[%clk 0:00:02]} 47. Kxc2 {[%clk 0:00:12]}  d3+ {[%clk 0:00:02]} 48. Kd2 {[%clk 0:00:11]}  Rh7 {[%clk 0:00:02]} 49. Qf6+ {[%clk 0:00:10]}  Kh5 {[%clk 0:00:01]} 50. Rh4# {[%clk 0:00:11]} 1-0


[Site "https://www.chess.com"]

[Event "Titled Tuesday Blitz October 11 Early 2022"]
[White "Aizpurua, Patrick Emilio"]
[Black "Seletsky, Grigory"]
[WhiteFideId "6600522"]
[BlackFideId "14112191"]
[WhiteElo "2378"]
[BlackElo "2492"]
[Result "1-0"]
[Round "06"]
[TimeControl "180+1"]
[Date "2022.10.12"]
[WhiteClock "0:00:06"]
[BlackClock "0:00:02"]

1. d4 {[%clk 0:03:00]}  d6 {[%clk 0:02:59]} 2. Nf3 {[%clk 0:03:00]}  Nf6 {[%clk 0:02:57]} 3. c4 {[%clk 0:03:00]}  Bg4 {[%clk 0:02:57]} 4. Nc3 {[%clk 0:02:58]}  Bxf3 {[%clk 0:02:57]} 5. gxf3 {[%clk 0:02:56]}  c6 {[%clk 0:02:55]} 6. f4 {[%clk 0:02:55]}  d5 {[%clk 0:02:53]} 7. b3 {[%clk 0:02:52]}  e6 {[%clk 0:02:52]} 8. a3 {[%clk 0:02:50]}  g6 {[%clk 0:02:51]} 9. e3 {[%clk 0:02:49]}  Bg7 {[%clk 0:02:50]} 10. Be2 {[%clk 0:02:46]}  O-O {[%clk 0:02:50]} 11. h4 {[%clk 0:02:45]}  h5 {[%clk 0:02:49]} 12. Qc2 {[%clk 0:02:40]}  Nbd7 {[%clk 0:02:43]} 13. Bb2 {[%clk 0:02:37]}  a6 {[%clk 0:02:32]} 14. O-O-O {[%clk 0:02:32]}  b5 {[%clk 0:02:31]} 15. c5 {[%clk 0:02:33]}  a5 {[%clk 0:02:30]} 16. Rdg1 {[%clk 0:02:32]}  a4 {[%clk 0:02:28]} 17. b4 {[%clk 0:02:31]}  Re8 {[%clk 0:02:14]} 18. f3 {[%clk 0:02:30]}  Qc7 {[%clk 0:02:05]} 19. Bd3 {[%clk 0:02:30]}  Nf8 {[%clk 0:01:57]} 20. Kd1 {[%clk 0:02:12]}  Kh8 {[%clk 0:01:52]} 21. Bc1 {[%clk 0:02:11]}  Bh6 {[%clk 0:01:50]} 22. Qh2 {[%clk 0:02:00]}  Rad8 {[%clk 0:01:48]} 23. Kc2 {[%clk 0:02:00]}  Ng8 {[%clk 0:01:47]} 24. Ne2 {[%clk 0:01:56]}  Ne7 {[%clk 0:01:37]} 25. e4 {[%clk 0:01:56]}  f5 {[%clk 0:01:34]} 26. e5 {[%clk 0:01:23]}  Nc8 {[%clk 0:01:22]} 27. Nc3 {[%clk 0:01:23]}  Na7 {[%clk 0:01:16]} 28. Rg3 {[%clk 0:01:21]}  Re7 {[%clk 0:01:15]} 29. Rhg1 {[%clk 0:01:20]}  Rg7 {[%clk 0:01:14]} 30. Qe2 {[%clk 0:01:18]}  Qd7 {[%clk 0:01:12]} 31. Qf1 {[%clk 0:01:13]}  Rb8 {[%clk 0:01:09]} 32. Be3 {[%clk 0:01:06]}  Qe8 {[%clk 0:01:09]} 33. Ne2 {[%clk 0:01:02]}  Rbb7 {[%clk 0:01:04]} 34. R1g2 {[%clk 0:01:02]}  Kh7 {[%clk 0:01:02]} 35. Ng1 {[%clk 0:01:02]}  Rbf7 {[%clk 0:00:59]} 36. Nh3 {[%clk 0:01:02]}  Re7 {[%clk 0:00:56]} 37. Ng5+ {[%clk 0:01:03]}  Bxg5 {[%clk 0:00:56]} 38. Rxg5 {[%clk 0:01:02]}  Nc8 {[%clk 0:00:50]} 39. Kb2 {[%clk 0:00:58]}  Ref7 {[%clk 0:00:49]} 40. Bc2 {[%clk 0:00:57]}  Re7 {[%clk 0:00:48]} 41. Qd1 {[%clk 0:00:56]}  Kg8 {[%clk 0:00:45]} 42. Qg1 {[%clk 0:00:50]}  Qd7 {[%clk 0:00:42]} 43. Qf1 {[%clk 0:00:44]}  Kf7 {[%clk 0:00:41]} 44. Qd1 {[%clk 0:00:42]}  Ke8 {[%clk 0:00:41]} 45. Bg1 {[%clk 0:00:27]}  Qa7 {[%clk 0:00:40]} 46. Bd3 {[%clk 0:00:26]}  Qb7 {[%clk 0:00:39]} 47. Be3 {[%clk 0:00:26]}  Kd8 {[%clk 0:00:37]} 48. Qg1 {[%clk 0:00:26]}  Kc7 {[%clk 0:00:34]} 49. Rxh5 {[%clk 0:00:24]}  Kb8 {[%clk 0:00:25]} 50. Rh8 {[%clk 0:00:20]}  Ref7 {[%clk 0:00:24]} 51. h5 {[%clk 0:00:12]}  Ne7 {[%clk 0:00:24]} 52. h6 {[%clk 0:00:11]}  Rh7 {[%clk 0:00:19]} 53. Rxh7 {[%clk 0:00:11]}  Nxh7 {[%clk 0:00:18]} 54. Rxg6 {[%clk 0:00:10]}  Nxg6 {[%clk 0:00:17]} 55. Qxg6 {[%clk 0:00:11]}  Nf8 {[%clk 0:00:15]} 56. Qg8 {[%clk 0:00:11]}  Qe7 {[%clk 0:00:14]} 57. Bf2 {[%clk 0:00:10]}  Rh7 {[%clk 0:00:14]} 58. Bh4 {[%clk 0:00:08]}  Qf7 {[%clk 0:00:14]} 59. Qxf7 {[%clk 0:00:07]}  Rxf7 {[%clk 0:00:13]} 60. Bg5 {[%clk 0:00:08]}  Rh7 {[%clk 0:00:11]} 61. Bf1 {[%clk 0:00:07]}  Kc8 {[%clk 0:00:11]} 62. Kc3 {[%clk 0:00:08]}  Kd7 {[%clk 0:00:10]} 63. Kd2 {[%clk 0:00:08]}  Rh8 {[%clk 0:00:09]} 64. Ke3 {[%clk 0:00:09]}  Rg8 {[%clk 0:00:06]} 65. Bf6 {[%clk 0:00:08]}  Nh7 {[%clk 0:00:05]} 66. Bg7 {[%clk 0:00:08]}  Nf8 {[%clk 0:00:02]} 67. Kf2 {[%clk 0:00:06]} 1-0


[Site "https://www.chess.com"]

[Event "Titled Tuesday Blitz October 11 Early 2022"]
[White "Aldokhin, Ivan"]
[Black "Weetik, Vjacheslav"]
[WhiteFideId "24115720"]
[BlackFideId "4153472"]
[WhiteElo "2313"]
[BlackElo "2469"]
[Result "0-1"]
[Round "06"]
[TimeControl "180+1"]
[Date "2022.10.12"]
[WhiteClock "0:00:06"]
[BlackClock "0:00:57"]

1. e4 {[%clk 0:03:00]}  c5 {[%clk 0:02:56]} 2. Nf3 {[%clk 0:03:00]}  Nc6 {[%clk 0:02:56]} 3. d4 {[%clk 0:03:00]}  cxd4 {[%clk 0:02:57]} 4. Nxd4 {[%clk 0:03:01]}  g6 {[%clk 0:02:58]} 5. Nc3 {[%clk 0:03:01]}  Bg7 {[%clk 0:02:58]} 6. Be3 {[%clk 0:03:01]}  Nf6 {[%clk 0:02:58]} 7. Bc4 {[%clk 0:03:02]}  O-O {[%clk 0:02:58]} 8. Bb3 {[%clk 0:03:02]}  Qa5 {[%clk 0:02:58]} 9. O-O {[%clk 0:03:01]}  d6 {[%clk 0:02:58]} 10. h3 {[%clk 0:02:59]}  Bd7 {[%clk 0:02:58]} 11. f4 {[%clk 0:02:59]}  Nxd4 {[%clk 0:02:57]} 12. Bxd4 {[%clk 0:02:59]}  Bc6 {[%clk 0:02:58]} 13. Nd5 {[%clk 0:02:20]}  Bxd5 {[%clk 0:02:50]} 14. exd5 {[%clk 0:02:19]}  Nd7 {[%clk 0:02:47]} 15. Bxg7 {[%clk 0:02:17]}  Kxg7 {[%clk 0:02:47]} 16. Qd4+ {[%clk 0:02:14]}  Kg8 {[%clk 0:02:47]} 17. Rae1 {[%clk 0:02:14]}  Rfe8 {[%clk 0:02:46]} 18. Kh1 {[%clk 0:02:01]}  Qc5 {[%clk 0:02:43]} 19. Qd2 {[%clk 0:01:44]}  b5 {[%clk 0:02:37]} 20. f5 {[%clk 0:01:08]}  Kg7 {[%clk 0:02:27]} 21. c3 {[%clk 0:00:48]}  Nf6 {[%clk 0:02:14]} 22. Rf4 {[%clk 0:00:36]}  g5 {[%clk 0:02:00]} 23. Rf3 {[%clk 0:00:28]}  h6 {[%clk 0:01:59]} 24. Rfe3 {[%clk 0:00:28]}  Kf8 {[%clk 0:01:23]} 25. h4 {[%clk 0:00:21]}  g4 {[%clk 0:01:11]} 26. Rxe7 {[%clk 0:00:13]}  Rxe7 {[%clk 0:01:06]} 27. Qxh6+ {[%clk 0:00:11]}  Ke8 {[%clk 0:01:07]} 28. Qh8+ {[%clk 0:00:08]}  Kd7 {[%clk 0:01:07]} 29. Rxe7+ {[%clk 0:00:06]}  Kxe7 {[%clk 0:01:08]} 30. Qxa8 {[%clk 0:00:06]}  Qf2 {[%clk 0:00:57]} 0-1


[Site "https://www.chess.com"]

[Event "Titled Tuesday Blitz October 11 Early 2022"]
[White "Aloma Vidal, Robert"]
[Black "Tymrakiewicz, Rafal"]
[WhiteFideId "2260409"]
[BlackFideId "1108832"]
[WhiteElo "2435"]
[BlackElo "2138"]
[Result "1-0"]
[Round "06"]
[TimeControl "180+1"]
[Date "2022.10.12"]
[WhiteClock "0:00:26"]
[BlackClock "0:00:27"]

1. e4 {[%clk 0:02:55]}  Nf6 {[%clk 0:02:57]} 2. e5 {[%clk 0:02:55]}  Nd5 {[%clk 0:02:57]} 3. d4 {[%clk 0:02:55]}  d6 {[%clk 0:02:57]} 4. Bc4 {[%clk 0:02:56]}  Nb6 {[%clk 0:02:56]} 5. Bb3 {[%clk 0:02:56]}  d5 {[%clk 0:02:57]} 6. h3 {[%clk 0:02:49]}  Nc6 {[%clk 0:02:51]} 7. Nf3 {[%clk 0:02:49]}  Bf5 {[%clk 0:02:51]} 8. O-O {[%clk 0:02:48]}  e6 {[%clk 0:02:51]} 9. Nc3 {[%clk 0:02:36]}  Na5 {[%clk 0:02:51]} 10. Ne2 {[%clk 0:02:36]}  Be7 {[%clk 0:02:45]} 11. Ng3 {[%clk 0:02:34]}  Bg6 {[%clk 0:02:46]} 12. Be3 {[%clk 0:02:30]}  Nbc4 {[%clk 0:02:44]} 13. Qc1 {[%clk 0:02:29]}  Nxe3 {[%clk 0:02:37]} 14. fxe3 {[%clk 0:02:23]}  Rc8 {[%clk 0:02:36]} 15. c3 {[%clk 0:02:21]}  Nxb3 {[%clk 0:02:36]} 16. axb3 {[%clk 0:02:22]}  a6 {[%clk 0:02:28]} 17. b4 {[%clk 0:02:22]}  O-O {[%clk 0:02:22]} 18. Qe1 {[%clk 0:02:11]}  b6 {[%clk 0:02:21]} 19. e4 {[%clk 0:02:09]}  c5 {[%clk 0:02:20]} 20. bxc5 {[%clk 0:02:07]}  bxc5 {[%clk 0:02:21]} 21. Rxa6 {[%clk 0:02:03]}  cxd4 {[%clk 0:02:18]} 22. Nxd4 {[%clk 0:01:56]}  Bc5 {[%clk 0:02:13]} 23. Kh2 {[%clk 0:01:43]}  dxe4 {[%clk 0:02:08]} 24. Nxe4 {[%clk 0:01:24]}  Bxd4 {[%clk 0:02:06]} 25. cxd4 {[%clk 0:01:20]}  Qxd4 {[%clk 0:02:06]} 26. Nd6 {[%clk 0:01:16]}  Rc2 {[%clk 0:02:06]} 27. b4 {[%clk 0:01:06]}  Qd5 {[%clk 0:02:04]} 28. Qg3 {[%clk 0:00:58]}  Qd3 {[%clk 0:01:29]} 29. Raa1 {[%clk 0:00:47]}  Rb8 {[%clk 0:01:04]} 30. Qxd3 {[%clk 0:00:44]}  Bxd3 {[%clk 0:01:04]} 31. Rxf7 {[%clk 0:00:45]}  Be4 {[%clk 0:00:58]} 32. Raa7 {[%clk 0:00:30]}  Rxg2+ {[%clk 0:00:56]} 33. Kh1 {[%clk 0:00:31]}  Rc8 {[%clk 0:00:38]} 34. Nxe4 {[%clk 0:00:29]}  Re2 {[%clk 0:00:29]} 35. Rxg7+ {[%clk 0:00:26]}  Kh8 {[%clk 0:00:26]} 36. Rxh7+ {[%clk 0:00:26]}  Kg8 {[%clk 0:00:26]} 37. Nf6+ {[%clk 0:00:26]}  Kf8 {[%clk 0:00:27]} 38. Rh8# {[%clk 0:00:26]} 1-0


[Site "https://www.chess.com"]